fUST/lending_fUST_20250716
["ID","MTS","AMOUNT","RATE_DAILY","PERIOD"]
[372483997,1752660653527,-460.0,0.00020547,2]
[372483999,1752660653537,-460.0,0.00020547,2]
[372484001,1752660653547,-460.0,0.00020547,2]
[372484003,1752660653556,-460.0,0.00020547,2]
[372484005,1752660653566,-460.0,0.00020547,2]
[372484007,1752660653576,-460.0,0.00020547,2]
[372484009,1752660653586,-460.0,0.00020547,2]
[372484011,1752660653595,-460.0,0.00020547,2]
[372484013,1752660653605,-460.0,0.00020547,2]
[372484015,1752660653614,-460.0,0.00020547,2]
[372484017,1752660653623,-460.0,0.00020547,2]
[372484019,1752660653633,-751.28,0.00020547,2]
[372484021,1752660653643,-460.0,0.00020547,2]
[372484023,1752660653653,-460.0,0.00020547,2]
[372484025,1752660653663,-819.37,0.00020547,2]
[372484026,1752660653672,-460.0,0.00020547,2]
[372484028,1752660653682,-460.0,0.00020547,2]
[372484031,1752660653694,-460.0,0.00020547,2]
[372484032,1752660653704,-237.63801237,0.00020547,2]
[372484034,1752660653714,-460.0,0.00020547,2]
[372484036,1752660653724,-460.0,0.00020547,2]
[372484038,1752660653734,-460.0,0.00020547,2]
[372484040,1752660653745,-460.0,0.00020547,2]
[372484042,1752660653754,-1774.73,0.00020547,2]
[372484044,1752660653764,-460.0,0.00020547,2]
[372484047,1752660653774,-528.59,0.00020547,2]
[372484049,1752660653785,-460.0,0.00020547,2]
[372484051,1752660653795,-3662.31,0.00020547,2]
[372484052,1752660653804,-927.24,0.00020547,2]
[372484061,1752660653878,-306.01905259,0.00020547,2]
[372484063,1752660653889,-539.66045575,0.00020547,2]
[372484065,1752660653899,-460.0,0.00020547,2]
[372484067,1752660653909,-460.0,0.00020547,2]
[372484069,1752660653919,-460.0,0.00020547,2]
[372484071,1752660653929,-460.0,0.00020547,2]
[372484073,1752660653939,-539.56,0.00020547,2]
[372484075,1752660653949,-460.0,0.00020547,2]
[372484077,1752660653959,-460.0,0.00020547,2]
[372484079,1752660653969,-460.0,0.00020547,2]
[372484081,1752660653978,-321.04742069,0.00020547,2]
[372484083,1752660653987,-1578.74,0.00020547,2]
[372484085,1752660653998,-460.0,0.00020547,2]
[372484087,1752660654008,-460.0,0.00020547,2]
[372484088,1752660654017,-460.0,0.00020547,2]
[372484090,1752660654027,-460.0,0.00020547,2]
[372484092,1752660654037,-460.0,0.00020547,2]
[372484094,1752660654046,-541.77,0.00020547,2]
[372484096,1752660654056,-1284.4,0.00020547,2]
[372484098,1752660654065,-460.0,0.00020547,2]
[372484100,1752660654075,-460.0,0.00020547,2]
[372484102,1752660654084,-415.26589951,0.00020547,2]
[372484104,1752660654094,-460.0,0.00020547,2]
[372484106,1752660654104,-1204.71,0.00020547,2]
[372484108,1752660654113,-460.0,0.00020547,2]
[372484110,1752660654123,-2170.89,0.00020547,2]
[372484112,1752660654132,-460.0,0.00020547,2]
[372484114,1752660654142,-460.0,0.00020547,2]
[372484116,1752660654151,-460.0,0.00020547,2]
[372484118,1752660654159,-460.0,0.00020547,2]
[372484120,1752660654168,-460.0,0.00020547,2]
[372484122,1752660654177,-460.0,0.00020547,2]
[372484124,1752660654186,-1030.19,0.00020547,2]
[372484126,1752660654196,-588.03,0.00020547,2]
[372484128,1752660654205,-2005.17,0.00020547,2]
[372484130,1752660654215,-460.0,0.00020547,2]
[372484131,1752660654225,-460.0,0.00020547,2]
[372484134,1752660654235,-460.0,0.00020547,2]
[372484136,1752660654246,-636.57,0.00020547,2]
[372484138,1752660654255,-460.0,0.00020547,2]
[372484140,1752660654264,-460.0,0.00020547,2]
[372484142,1752660654274,-518.81,0.00020547,2]
[372484144,1752660654284,-963.17,0.00020547,2]
[372484146,1752660654293,-1717.02,0.00020547,2]
[372484148,1752660654303,-460.0,0.00020547,2]
[372484149,1752660654312,-998.34621255,0.00020568,2]
[372484151,1752660654322,-1003.9999861,0.00020568,2]
[372484153,1752660654331,-1680.0,0.00020585,2]
[372484155,1752660654341,-160.0,0.00020591,2]
[372484157,1752660654350,-151.0,0.000206,4]
[372484159,1752660654360,-693.20811964,0.00020728,3]
[372484161,1752660654369,-586.72799705,0.00020748,2]
[372484163,1752660654379,-160.0,0.00020776,2]
[372484165,1752660654388,-160.0,0.00020776,2]
[372484167,1752660654398,-230.8109288,0.00020776,2]
[372484169,1752660654408,-160.0,0.00020776,2]
[372484171,1752660654423,-12605.49131908,0.00020776,2]
[372484173,1752660654433,-160.0,0.00020776,2]
[372484175,1752660654442,-160.0,0.00020776,2]
[372484177,1752660654452,-160.0,0.00020776,2]
[372484179,1752660654462,-160.0,0.00020776,2]
[372484181,1752660654471,-520.85416667,0.00020776,2]
[372484183,1752660654481,-838.99048831,0.00020776,2]
[372484185,1752660654492,-160.0,0.00020776,2]
[372484187,1752660654502,-215.5496034,0.00020776,2]
[372484189,1752660654513,-476.07036022,0.00020776,2]
[372484191,1752660654524,-214.40824756,0.00020776,2]
[372484193,1752660654534,-160.0,0.00020776,2]
[372484195,1752660654544,-160.0,0.00020776,2]
[372484197,1752660654554,-151.0,0.00020821,2]
[372484199,1752660654564,-151.0,0.00020821,2]
[372484201,1752660654574,-161.343582,0.00020821,2]
[372484203,1752660654584,-460.0,0.00020821,2]
[372484205,1752660654594,-460.0,0.00020821,2]
[372484207,1752660654604,-460.0,0.00020821,2]
[372484209,1752660654614,-460.0,0.00020821,2]
[372484211,1752660654624,-460.0,0.00020821,2]
[372484213,1752660654633,-460.0,0.00020821,2]
[372484215,1752660654643,-460.0,0.00020821,2]
[372484217,1752660654653,-460.0,0.00020821,2]
[372484219,1752660654662,-609.66,0.00020821,2]
[372484221,1752660654672,-460.0,0.00020821,2]
[372484223,1752660654681,-460.0,0.00020821,2]
[372484225,1752660654691,-460.0,0.00020821,2]
[372484227,1752660654700,-460.0,0.00020821,2]
[372484229,1752660654710,-460.0,0.00020821,2]
[372484231,1752660654719,-460.0,0.00020821,2]
[372484233,1752660654730,-460.0,0.00020821,2]
[372484235,1752660654740,-460.0,0.00020821,2]
[372484237,1752660654749,-512.05,0.00020821,2]
[372484239,1752660654758,-460.0,0.00020821,2]
[372484241,1752660654768,-460.0,0.00020821,2]
[372484243,1752660654777,-460.0,0.00020821,2]
[372484245,1752660654786,-460.0,0.00020821,2]
[372484247,1752660654797,-460.0,0.00020821,2]
[372484249,1752660654807,-460.0,0.00020821,2]
[372484250,1752660654817,-460.0,0.00020821,2]
[372484252,1752660654827,-460.0,0.00020821,2]
[372484254,1752660654836,-460.0,0.00020821,2]
[372484256,1752660654845,-460.0,0.00020821,2]
[372484258,1752660654855,-291.35001493,0.00020821,2]
[372484260,1752660654865,-460.0,0.00020821,2]
[372484262,1752660654875,-460.0,0.00020821,2]
[372484264,1752660654885,-460.0,0.00020821,2]
[372484266,1752660654894,-460.0,0.00020821,2]
[372484268,1752660654904,-460.0,0.00020821,2]
[372484270,1752660654913,-751.28,0.00020821,2]
[372484272,1752660654922,-460.0,0.00020821,2]
[372484274,1752660654932,-460.0,0.00020821,2]
[372484276,1752660654941,-819.37,0.00020821,2]
[372484278,1752660654951,-460.0,0.00020821,2]
[372484280,1752660654961,-460.0,0.00020821,2]
[372484282,1752660654970,-460.0,0.00020821,2]
[372484284,1752660654979,-460.0,0.00020821,2]
[372484286,1752660654988,-460.0,0.00020821,2]
[372484288,1752660654998,-1774.73,0.00020821,2]
[372484290,1752660655008,-256.35568795,0.00020821,2]
[372484292,1752660655017,-460.0,0.00020821,2]
[372484293,1752660655027,-572.57400663,0.00020821,2]
[372484295,1752660655036,-528.59,0.00020821,2]
[372484304,1752660655111,-460.0,0.00020821,2]
[372484306,1752660655120,-3662.31,0.00020821,2]
[372484308,1752660655129,-927.24,0.00020821,2]
[372484310,1752660655139,-460.0,0.00020821,2]
[372484313,1752660655149,-460.0,0.00020821,2]
[372484315,1752660655159,-460.0,0.00020821,2]
[372484316,1752660655168,-460.0,0.00020821,2]
[372484318,1752660655178,-460.0,0.00020821,2]
[372484320,1752660655188,-460.0,0.00020821,2]
[372484322,1752660655198,-460.0,0.00020821,2]
[372484324,1752660655207,-1578.74,0.00020821,2]
[372484326,1752660655216,-460.0,0.00020821,2]
[372484328,1752660655226,-460.0,0.00020821,2]
[372484330,1752660655236,-460.0,0.00020821,2]
[372484332,1752660655245,-460.0,0.00020821,2]
[372484334,1752660655254,-460.0,0.00020821,2]
[372484336,1752660655264,-541.77,0.00020821,2]
[372484338,1752660655273,-1284.4,0.00020821,2]
[372484340,1752660655282,-460.0,0.00020821,2]
[372484342,1752660655291,-460.0,0.00020821,2]
[372484344,1752660655300,-460.0,0.00020821,2]
[372484346,1752660655309,-1204.71,0.00020821,2]
[372484348,1752660655318,-460.0,0.00020821,2]
[372484350,1752660655327,-2170.89,0.00020821,2]
[372484352,1752660655337,-460.0,0.00020821,2]
[372484354,1752660655346,-460.0,0.00020821,2]
[372484356,1752660655355,-460.0,0.00020821,2]
[372484358,1752660655365,-460.0,0.00020821,2]
[372484360,1752660655375,-460.0,0.00020821,2]
[372484362,1752660655384,-460.0,0.00020821,2]
[372484364,1752660655393,-1030.19,0.00020821,2]
[372484366,1752660655403,-588.03,0.00020821,2]
[372484368,1752660655413,-2005.17,0.00020821,2]
[372484370,1752660655425,-460.0,0.00020821,2]
[372484372,1752660655434,-460.0,0.00020821,2]
[372484374,1752660655444,-49.9646554,0.00020821,2]
[372484388,1752660655568,-410.0353446,0.00020821,2]
[372484390,1752660655578,-636.57,0.00020821,2]
[372484392,1752660655587,-460.0,0.00020821,2]
[372484394,1752660655597,-460.0,0.00020821,2]
[372484396,1752660655606,-518.81,0.00020821,2]
[372484397,1752660655616,-963.17,0.00020821,2]
[372484399,1752660655625,-1431.15967125,0.00020821,2]
[372484402,1752660655637,-285.86032875,0.00020821,2]
[372484404,1752660655646,-460.0,0.00020821,2]
[372484405,1752660655655,-500.96833344,0.00020894,2]
[372484407,1752660655664,-500.0,0.00020894,2]
[372484409,1752660655673,-392.50828352,0.00020934,4]
[372484412,1752660655688,-287.70733921,0.00020934,4]
[372484414,1752660655700,-12.99249691,0.00020934,4]
[372484416,1752660655710,-1263.49250312,0.00020964,2]
[372484418,1752660655721,-1149.36,0.00020964,2]
[372484420,1752660655732,-87.14749688,0.00020964,2]
[372484422,1752660655741,-151.0,0.00021,4]
[372484424,1752660655750,-178.376,0.00021033,2]
[372484426,1752660655759,-930.33,0.00021033,2]
[372484428,1752660655769,-151.0,0.00021095,2]
[372484429,1752660655778,-291.094633,0.00021095,2]
[372484430,1752660655788,-291.094633,0.00021095,2]
[372484431,1752660655797,-151.0,0.00021095,2]
[372484432,1752660655807,-460.0,0.00021095,2]
[372484433,1752660655816,-460.0,0.00021095,2]
[372484434,1752660655826,-460.0,0.00021095,2]
[372484435,1752660655836,-460.0,0.00021095,2]
[372484436,1752660655846,-460.0,0.00021095,2]
[372484437,1752660655855,-460.0,0.00021095,2]
[372484438,1752660655865,-460.0,0.00021095,2]
[372484440,1752660655875,-460.0,0.00021095,2]
[372484442,1752660655884,-469.92225315,0.00021095,2]
[372484444,1752660655895,-553.48507504,0.00021095,2]
[372484446,1752660655905,-460.0,0.00021095,2]
[372484448,1752660655915,-460.0,0.00021095,2]
[372484450,1752660655924,-460.0,0.00021095,2]
[372484452,1752660655934,-460.0,0.00021095,2]
[372484454,1752660655944,-460.0,0.00021095,2]
[372484456,1752660655953,-512.05,0.00021095,2]
[372484458,1752660655962,-460.0,0.00021095,2]
[372484460,1752660655972,-264.42099857,0.00021095,2]
[372484462,1752660655981,-460.0,0.00021095,2]
[372484464,1752660655990,-460.0,0.00021095,2]
[372484466,1752660655999,-460.0,0.00021095,2]
[372484468,1752660656008,-313.88966242,0.00021095,2]
[372484470,1752660656017,-460.0,0.00021095,2]
[372484472,1752660656026,-460.0,0.00021095,2]
[372484474,1752660656036,-460.0,0.00021095,2]
[372484476,1752660656046,-460.0,0.00021095,2]
[372484484,1752660656117,-460.0,0.00021095,2]
[372484486,1752660656127,-460.0,0.00021095,2]
[372484488,1752660656137,-460.0,0.00021095,2]
[372484490,1752660656145,-460.0,0.00021095,2]
[372484492,1752660656155,-751.28,0.00021095,2]
[372484494,1752660656164,-460.0,0.00021095,2]
[372484496,1752660656174,-460.0,0.00021095,2]
[372484498,1752660656193,-819.37,0.00021095,2]
[372484500,1752660656208,-460.0,0.00021095,2]
[372484502,1752660656218,-460.0,0.00021095,2]
[372484504,1752660656228,-460.0,0.00021095,2]
[372484506,1752660656238,-460.0,0.00021095,2]
[372484508,1752660656249,-460.0,0.00021095,2]
[372484510,1752660656259,-1774.73,0.00021095,2]
[372484512,1752660656269,-528.59,0.00021095,2]
[372484514,1752660656278,-460.0,0.00021095,2]
[372484516,1752660656287,-3662.31,0.00021095,2]
[372484518,1752660656297,-927.24,0.00021095,2]
[372484520,1752660656306,-460.0,0.00021095,2]
[372484522,1752660656315,-460.0,0.00021095,2]
[372484524,1752660656324,-460.0,0.00021095,2]
[372484526,1752660656333,-460.0,0.00021095,2]
[372484528,1752660656342,-228.08096883,0.00021095,2]
[372484530,1752660656351,-460.0,0.00021095,2]
[372484532,1752660656359,-1578.74,0.00021095,2]
[372484534,1752660656369,-540.52492912,0.00021095,2]
[372484536,1752660656378,-460.0,0.00021095,2]
[372484538,1752660656387,-387.26,0.00021095,2]
[372484540,1752660656397,-460.0,0.00021095,2]
[372484542,1752660656406,-460.0,0.00021095,2]
[372484544,1752660656418,-541.77,0.00021095,2]
[372484546,1752660656427,-1284.4,0.00021095,2]
[372484548,1752660656436,-460.0,0.00021095,2]
[372484550,1752660656445,-460.0,0.00021095,2]
[372484552,1752660656454,-460.0,0.00021095,2]
[372484553,1752660656464,-1204.71,0.00021095,2]
[372484556,1752660656474,-460.0,0.00021095,2]
[372484557,1752660656484,-2170.89,0.00021095,2]
[372484559,1752660656495,-460.0,0.00021095,2]
[372484561,1752660656504,-460.0,0.00021095,2]
[372484563,1752660656513,-460.0,0.00021095,2]
[372484565,1752660656523,-460.0,0.00021095,2]
[372484567,1752660656532,-460.0,0.00021095,2]
[372484569,1752660656542,-460.0,0.00021095,2]
[372484571,1752660656551,-1030.19,0.00021095,2]
[372484573,1752660656561,-588.03,0.00021095,2]
[372484575,1752660656569,-1965.73139535,0.00021095,2]
[372484577,1752660656581,-39.43860465,0.00021095,2]
[372484579,1752660656590,-460.0,0.00021095,2]
[372484581,1752660656599,-460.0,0.00021095,2]
[372484583,1752660656608,-279.30605142,0.00021095,2]
[372484589,1752660656653,-460.0,0.00019178,2]
[372484591,1752660656662,-460.0,0.00019178,2]
[372484593,1752660656671,-460.0,0.00019178,2]
[372484595,1752660656680,-460.0,0.00019452,2]
[372484597,1752660656689,-234.11705172,0.00019452,2]
[372484599,1752660656699,-180.69394858,0.00021095,2]
[372484601,1752660656708,-636.57,0.00021095,2]
[372484602,1752660656718,-460.0,0.00021095,2]
[372484604,1752660656727,-460.0,0.00021095,2]
[372484606,1752660656737,-518.81,0.00021095,2]
[372484608,1752660656746,-963.17,0.00021095,2]
[372484610,1752660656755,-1717.02,0.00021095,2]
[372484612,1752660656765,-316.4811283,0.00021095,2]
[372484615,1752660656775,-921.30477032,0.00021125,2]
[372484617,1752660656789,-260.0,0.00021139,2]
[372484619,1752660656798,-693.20811964,0.00021141,4]
[372484621,1752660656808,-5000.0,0.00021161,2]
[372484623,1752660656818,-500.0,0.00021164,2]
[372484625,1752660656828,-693.20811964,0.00021348,5]
[372484627,1752660656838,-460.0,0.00021369,2]
[372484629,1752660656849,-460.0,0.00021369,2]
[372484631,1752660656859,-460.0,0.00021369,2]
[372484633,1752660656869,-460.0,0.00021369,2]
[372484635,1752660656878,-460.0,0.00021369,2]
[372484637,1752660656888,-460.0,0.00021369,2]
[372484639,1752660656897,-460.0,0.00021369,2]
[372484641,1752660656906,-460.0,0.00021369,2]
[372484643,1752660656917,-460.0,0.00021369,2]
[372484645,1752660656926,-460.0,0.00021369,2]
[372484647,1752660656937,-460.0,0.00021369,2]
[372484649,1752660656946,-460.0,0.00021369,2]
[372484651,1752660656956,-512.05,0.00021369,2]
[372484653,1752660656965,-460.0,0.00021369,2]
[372484655,1752660656975,-460.0,0.00021369,2]
[372484657,1752660656985,-460.0,0.00021369,2]
[372484659,1752660656994,-460.0,0.00021369,2]
[372484661,1752660657003,-460.0,0.00021369,2]
[372484663,1752660657012,-460.0,0.00021369,2]
[372484665,1752660657021,-460.0,0.00021369,2]
[372484667,1752660657030,-460.0,0.00021369,2]
[372484669,1752660657041,-460.0,0.00021369,2]
[372484671,1752660657050,-460.0,0.00021369,2]
[372484673,1752660657059,-460.0,0.00021369,2]
[372484675,1752660657067,-460.0,0.00021369,2]
[372484677,1752660657076,-751.28,0.00021369,2]
[372484678,1752660657086,-460.0,0.00021369,2]
[372484681,1752660657096,-460.0,0.00021369,2]
[372484688,1752660657162,-819.37,0.00021369,2]
[372484690,1752660657171,-460.0,0.00021369,2]
[372484692,1752660657181,-460.0,0.00021369,2]
[372484694,1752660657190,-460.0,0.00021369,2]
[372484696,1752660657200,-460.0,0.00021369,2]
[372484698,1752660657209,-388.33954498,0.00021369,2]
[372484700,1752660657219,-1774.73,0.00021369,2]
[372484702,1752660657228,-528.59,0.00021369,2]
[372484704,1752660657237,-460.0,0.00021369,2]
[372484706,1752660657246,-3662.31,0.00021369,2]
[372484708,1752660657255,-927.24,0.00021369,2]
[372484710,1752660657264,-460.0,0.00021369,2]
[372484712,1752660657274,-460.0,0.00021369,2]
[372484714,1752660657283,-460.0,0.00021369,2]
[372484716,1752660657292,-460.0,0.00021369,2]
[372484718,1752660657302,-460.0,0.00021369,2]
[372484720,1752660657311,-1578.74,0.00021369,2]
[372484722,1752660657321,-460.0,0.00021369,2]
[372484724,1752660657330,-460.0,0.00021369,2]
[372484726,1752660657339,-460.0,0.00021369,2]
[372484728,1752660657349,-541.77,0.00021369,2]
[372484730,1752660657359,-1284.4,0.00021369,2]
[372484732,1752660657368,-460.0,0.00021369,2]
[372484734,1752660657378,-460.0,0.00021369,2]
[372484736,1752660657388,-460.0,0.00021369,2]
[372484738,1752660657399,-1204.71,0.00021369,2]
[372484740,1752660657409,-460.0,0.00021369,2]
[372484742,1752660657427,-2170.89,0.00021369,2]
[372484744,1752660657436,-460.0,0.00021369,2]
[372484746,1752660657446,-167.6037174,0.00021369,2]
[372484748,1752660657455,-460.0,0.00021369,2]
[372484750,1752660657466,-460.0,0.00021369,2]
[372484752,1752660657476,-460.0,0.00021369,2]
[372484754,1752660657485,-460.0,0.00021369,2]
[372484756,1752660657496,-1030.19,0.00021369,2]
[372484758,1752660657507,-588.03,0.00021369,2]
[372484760,1752660657516,-2005.17,0.00021369,2]
[372484762,1752660657526,-460.0,0.00021369,2]
[372484764,1752660657535,-460.0,0.00021369,2]
[372484766,1752660657546,-60.783914,0.00021369,2]
[372484889,1752660658736,-399.216086,0.00021369,2]
[372484891,1752660658746,-636.57,0.00021369,2]
[372484893,1752660658755,-460.0,0.00021369,2]
[372484895,1752660658764,-283.4248444,0.00021369,2]
[372484897,1752660658776,-176.5751556,0.00021369,2]
[372484899,1752660658786,-518.81,0.00021369,2]
[372484901,1752660658796,-1717.02,0.00021369,2]
[372484903,1752660658806,-963.17,0.00021369,2]
[372484905,1752660658815,-151.0,0.000214,3]
[372484908,1752660658826,-1000.0,0.00021442,2]
[372484909,1752660658835,-524.69984856,0.00021512,2]
[372484912,1752660658845,-693.20811964,0.00021555,5]
[372484914,1752660658855,-151.0,0.00021643,2]
[372484916,1752660658864,-543.41239829,0.00021643,2]
[372484918,1752660658874,-460.0,0.00021643,2]
[372484920,1752660658884,-460.0,0.00021643,2]
[372484922,1752660658893,-460.0,0.00021643,2]
[372484924,1752660658902,-460.0,0.00021643,2]
[372484926,1752660658911,-460.0,0.00021643,2]
[372484928,1752660658920,-460.0,0.00021643,2]
[372484929,1752660658930,-460.0,0.00021643,2]
[372484932,1752660658940,-460.0,0.00021643,2]
[372484934,1752660658950,-460.0,0.00021643,2]
[372484936,1752660658959,-512.05,0.00021643,2]
[372484937,1752660658969,-460.0,0.00021643,2]
[372484940,1752660658979,-460.0,0.00021643,2]
[372484942,1752660658989,-460.0,0.00021643,2]
[372484944,1752660658999,-460.0,0.00021643,2]
[372484946,1752660659008,-460.0,0.00021643,2]
[372484948,1752660659018,-460.0,0.00021643,2]
[372484950,1752660659027,-460.0,0.00021643,2]
[372484952,1752660659037,-285.69965024,0.00021643,2]
[372484954,1752660659046,-460.0,0.00021643,2]
[372484956,1752660659055,-460.0,0.00021643,2]
[372484958,1752660659064,-460.0,0.00021643,2]
[372484960,1752660659074,-751.28,0.00021643,2]
[372484962,1752660659083,-460.0,0.00021643,2]
[372484964,1752660659094,-551.14182321,0.00021643,2]
[372484965,1752660659103,-819.37,0.00021643,2]
[372484967,1752660659115,-460.0,0.00021643,2]
[372484969,1752660659125,-460.0,0.00021643,2]
[372484971,1752660659135,-460.0,0.00021643,2]
[372484974,1752660659145,-460.0,0.00021643,2]
[372484976,1752660659155,-1774.73,0.00021643,2]
[372484978,1752660659164,-528.59,0.00021643,2]
[372484979,1752660659174,-460.0,0.00021643,2]
[372484982,1752660659186,-3662.31,0.00021643,2]
[372484984,1752660659196,-927.24,0.00021643,2]
[372484986,1752660659205,-460.0,0.00021643,2]
[372484988,1752660659214,-460.0,0.00021643,2]
[372484990,1752660659224,-460.0,0.00021643,2]
[372484992,1752660659233,-460.0,0.00021643,2]
[372484994,1752660659242,-460.0,0.00021643,2]
[372484996,1752660659251,-1578.74,0.00021643,2]
[372484998,1752660659260,-460.0,0.00021643,2]
[372485000,1752660659269,-460.0,0.00021643,2]
[372485001,1752660659279,-541.77,0.00021643,2]
[372485003,1752660659288,-1284.4,0.00021643,2]
[372485005,1752660659298,-460.0,0.00021643,2]
[372485008,1752660659308,-558.52907695,0.00021643,2]
[372485010,1752660659318,-344.25392752,0.00021643,2]
[372485012,1752660659330,-115.74607248,0.00021643,2]
[372485014,1752660659339,-374.97375496,0.00021643,2]
[372485037,1752660659555,-796.04936445,0.00019178,2]
[372485060,1752660659772,-174.31536871,0.00019178,2]
[372485062,1752660659782,-460.0,0.00019178,2]
[372485064,1752660659793,-460.0,0.00019178,2]
[372485066,1752660659802,-460.0,0.00019452,2]
[372485068,1752660659811,-249.63526684,0.00019452,2]
[372485070,1752660659824,-329.89473316,0.00019452,2]
[372485072,1752660659835,-460.0,0.00019726,2]
[372485074,1752660659844,-577.64,0.0002,2]
[372485076,1752660659854,-829.73624504,0.00021643,2]
[372485078,1752660659863,-460.0,0.00021643,2]
[372485080,1752660659873,-2170.89,0.00021643,2]
[372485082,1752660659883,-460.0,0.00021643,2]
[372485084,1752660659892,-460.0,0.00021643,2]
[372485086,1752660659901,-460.0,0.00021643,2]
[372485088,1752660659911,-460.0,0.00021643,2]
[372485090,1752660659920,-460.0,0.00021643,2]
[372485092,1752660659930,-599.4666763,0.00021643,2]
[372485094,1752660659941,-430.7233237,0.00021643,2]
[372485096,1752660659951,-588.03,0.00021643,2]
[372485098,1752660659961,-2005.17,0.00021643,2]
[372485100,1752660659970,-460.0,0.00021643,2]
[372485102,1752660659979,-460.0,0.00021643,2]
[372485104,1752660659989,-150.69,0.00021643,2]
[372485106,1752660659998,-636.57,0.00021643,2]
[372485108,1752660660008,-460.0,0.00021643,2]
[372485110,1752660660018,-460.0,0.00021643,2]
[372485112,1752660660029,-518.81,0.00021643,2]
[372485114,1752660660038,-30.7719233,0.00021643,2]
[372485135,1752660660367,-371.48318948,0.00019178,2]
[372485138,1752660660379,-88.51681052,0.00019178,2]
[372485140,1752660660388,-227.04390175,0.00019178,2]
[372485142,1752660660399,-232.95609825,0.00019178,2]
[372485144,1752660660409,-184.49,0.00019452,2]
[372485146,1752660660422,-1686.2480767,0.00021643,2]
[372485148,1752660660432,-963.17,0.00021643,2]
[372485150,1752660660441,-360.0,0.00021687,2]
[372485152,1752660660451,-151.0,0.000217,4]
[372485154,1752660660461,-586.72799705,0.00021722,2]
[372485156,1752660660471,-4809.25154214,0.0002175,2]
[372485158,1752660660480,-693.20811964,0.00021762,5]
[372485160,1752660660491,-921.30477032,0.000219,2]
[372485162,1752660660500,-151.0,0.00021917,2]
[372485164,1752660660510,-292.769578,0.00021917,2]
[372485165,1752660660521,-599.38,0.00021917,2]
[372485168,1752660660531,-460.0,0.00021917,2]
[372485169,1752660660540,-143.4938679,0.00021917,2]
[372485172,1752660660552,-125.29367459,0.00021917,2]
[372485173,1752660660561,-460.0,0.00021917,2]
[372485175,1752660660571,-460.0,0.00021917,2]
[372485177,1752660660580,-339.99,0.00021917,2]
[372485179,1752660660590,-460.0,0.00021917,2]
[372485181,1752660660599,-460.0,0.00021917,2]
[372485183,1752660660609,-460.0,0.00021917,2]
[372485185,1752660660619,-512.05,0.00021917,2]
[372485187,1752660660629,-460.0,0.00021917,2]
[372485189,1752660660638,-460.0,0.00021917,2]
[372485191,1752660660648,-460.0,0.00021917,2]
[372485193,1752660660658,-480.44803317,0.00021917,2]
[372485195,1752660660668,-403.18,0.00021917,2]
[372485197,1752660660678,-276.89,0.00021917,2]
[372485199,1752660660689,-460.0,0.00021917,2]
[372485202,1752660660700,-460.0,0.00021917,2]
[372485203,1752660660710,-460.0,0.00021917,2]